[Event "7th Porticcio Open 2022"]
[Site "Porticcio"]
[Date "2022.07.07"]
[Round "8.2"]
[White "Venkatesh, M.R."]
[Black "Can, Isik"]
[Result "0-1"]
[ECO "C45"]
[WhiteElo "2479"]
[BlackElo "2445"]
[Annotator "TA"]
[PlyCount "71"]
[EventDate "2022.07.02"]
[EventType "swiss"]
[EventCountry "FRA"]
[SourceTitle "playchess.com"]
[Source "ChessBase"]
[SourceQuality "1"]
[TimeControl "5400+30"]

{[%evp 14,71,0,-17,-32,-26,22,16,20,-8,-8,-18,-12,-8,-14,-47,-34,-39,-41,-43,-41,-37,0,-117,-108,-96,-102,-102,-107,-96,-89,-103,-104,-111,-84,-84,-67,-66,-19,-160,-170,-218,-183,-217,-171,-286,-248,-369,-370,-375,-348,-398,-406,-442,-437,-426,-413,-1176,-1139,-1330]} 1. e4 {[%emt 0:00:07]} e5 {[%emt 0:02:58]} 2. Nf3 {[%emt 0:00:11]} Nc6 {[%emt 0:00:03]} 3. d4 {[%emt 0:00:19]} exd4 {[%emt 0:00:05]} 4. Nxd4 {[%emt 0:00:04]} Nf6 {[%emt 0:00:03]} 5. Nxc6 {[%emt 0:00:34]} bxc6 {[%emt 0:00:04]} 6. e5 {[%emt 0:00:14]} Qe7 {[%emt 0:00:04]} 7. Qe2 {[%emt 0:00:06]} Nd5 {[%emt 0:00:04]} 8. h4 {[%emt 0:00:14]} (8. c4 $5 {[%cal Rc4d5]} Nb6 9. b3 $11) 8... Qe6 {[%emt 0:01:23] C45: Scotch Game.} 9. Nd2 {[%emt 0:00:28] 9.Nd2 is better than 9.g3.} Nb4 {[%emt 0:16:11]} (9... a5 $142) 10. Nf3 $11 {[%emt 0:00:29]} Qg6 {[%emt 0:06:15] The position is equal.} 11. Kd1 {[%emt 0:01:49]} (11. Nd4 $5 {[%cal Rh4h5]} h5 12. a3 $11) 11... Ba6 {[%emt 0:05:22]} 12. c4 {[%emt 0:01:11]} c5 $1 {[%emt 0:06:45]} 13. a3 {[%emt 0:11:38]} Nc6 {[%emt 0:01:10] [#]} 14. Qc2 $146 {[%emt 0:08:24]} ({Predecessor:} 14. h5 Qe6 15. Bd2 Rb8 16. Bc3 Be7 17. Kc2 O-O 18. Qe4 Bb7 19. Qe1 Ba8 20. Bd3 {1-0 (68) Acs,P (2569)-Kantor,G (2575) Budapest 2021}) 14... Qg4 $36 {[%emt 0:05:09][%mdl 2048] Black has the initiative.} 15. Rh3 {[%emt 0:34:20]} Nd4 {[%emt 0:10:46]} 16. Qd3 {[%emt 0:05:05]} Bb7 {[%emt 0:06:59]} 17. Rg3 {[%emt 0:02:43]} Qh5 {[%emt 0:10:25]} (17... Bxf3+ $5 18. gxf3 Qxh4 $11) 18. Bf4 {[%emt 0:14:54]} (18. Be2 $11 {keeps the balance.} Nxe2 19. Kxe2 (19. Qxe2 Qf5 $15)) 18... Be7 {[%emt 0:08:08] Black is more active.} 19. Be2 {[%emt 0:04:55]} Bxf3 {[%emt 0:00:55]} 20. Bxf3 {[%emt 0:00:57] [#]} Qxh4 {[%emt 0:00:11]} 21. Qe4 {[%emt 0:09:40]} Rb8 {[%emt 0:06:42]} 22. Rb1 {[%emt 0:00:18]} g6 {[%emt 0:03:29]} 23. Ke1 {[%emt 0:02:05]} Qh1+ {[%emt 0:03:51]} 24. Kd2 {[%emt 0:00:02]} Nxf3+ {[%emt 0:00:06]} 25. gxf3 {[%emt 0:00:08]} Qh2 {[%emt 0:00:33]} (25... Qh4 $15 {is superior.}) 26. Qe3 {[%emt 0:01:49] [#]} (26. Be3 $1 $11) 26... Bh4 $1 $17 {[%emt 0:00:45]} 27. Qxc5 {[%emt 0:00:28]} ({Avoid the trap} 27. Rxg6 $2 {[#]} Bxf2 $1 28. Bxh2 Bxe3+ 29. Kxe3 Rb3+ 30. Kf4 hxg6 $19) (27. e6 $142 fxe6 28. Rxg6 Qxf2+ 29. Qxf2 Bxf2 30. Rh6) 27... Bxg3 $19 {[%emt 0:01:44]} 28. Bxg3 {[%emt 0:00:01]} Qh5 {[%emt 0:01:02] aiming for ...Qf5.} 29. Qe3 {[%emt 0:01:15]} (29. Qxa7 {was necessary.} O-O 30. Qe3) 29... O-O {[%emt 0:00:36]} 30. Kc3 {[%emt 0:00:21]} (30. b4 {is a better defense.}) 30... f6 {[%emt 0:00:48] And now ...fxe5 would win.} 31. e6 {[%emt 0:00:40]} Rbe8 {[%emt 0:00:48]} 32. Rd1 {[%emt 0:00:18]} Rxe6 {[%emt 0:00:10]} 33. Qxa7 {[%emt 0:00:04]} Qxf3+ {[%emt 0:00:58]} 34. Rd3 {[%emt 0:00:02]} Qh1 {[%emt 0:00:11]} ({Weaker is} 34... Qe2 35. Qxc7 d6 36. Rxd6 $17) 35. Qxc7 {[%emt 0:00:15]} (35. Bf4 $142 Qe4 36. Qd4 Qe1+ 37. Kc2) 35... Qc1+ {[%emt 0:00:21]} 36. Kd4 {Weighted Error Value: White=0.50/Black=0.10 (very precise)} 0-1

[Event "7th Porticcio Open 2022"]
[Site "Porticcio"]
[Date "2022.07.07"]
[Round "8.3"]
[White "Karttunen, Mika"]
[Black "Clarke, Brandon G I"]
[Result "1-0"]
[ECO "A34"]
[WhiteElo "2484"]
[BlackElo "2486"]
[Annotator "TA"]
[PlyCount "97"]
[EventDate "2022.07.02"]
[EventType "swiss"]
[EventCountry "FRA"]
[SourceTitle "playchess.com"]
[Source "ChessBase"]
[SourceQuality "1"]
[TimeControl "5400+30"]

{[%evp 9,97,4,16,0,5,-6,-13,-17,-7,-25,-22,-20,-20,-35,-20,-38,-27,-50,-32,-30,-20,-36,-29,-42,-30,-33,-33,-49,-38,-49,-50,-49,-49,-43,-23,-16,-20,-21,-23,-23,-20,-78,-79,-84,-78,-116,-88,-94,-48,-97,-78,-100,-97,-96,-75,-107,-68,-121,-123,-186,-108,-187,-193,-200,-119,-105,-12,-91,-91,-91,0,0,181,0,79,72,738,737,731,720,731,731,695,622,29996,29997,29997,29998,29998,29998]} 1. Nf3 {[%emt 0:00:06]} Nf6 {[%emt 0:01:03]} 2. c4 {[%emt 0:00:05]} c5 {[%emt 0:01:45]} 3. Nc3 {[%emt 0:01:19]} d5 {[%emt 0:00:03]} 4. cxd5 {[%emt 0:00:32]} Nxd5 {[%emt 0:00:04]} 5. e3 {[%emt 0:00:24]} e6 {[%emt 0:02:46]} 6. a3 {[%emt 0:10:17] A17: English Opening: 1...Nf6 with ...Bb4.} Be7 {[%emt 0:03:28]} 7. Bb5+ {[%emt 0:02:20]} Bd7 {[%emt 0:00:34] [#]} 8. Bc4 $146 {[%emt 0:05:19] The position is equal.} ({Predecessor:} 8. e4 Bxb5 9. Nxb5 Nf4 10. O-O Qd7 11. Nc3 Nc6 12. d4 cxd4 13. Bxf4 dxc3 14. Qxd7+ Kxd7 15. bxc3 {1-0 (38) Gimenez Fernandez,E-Gonzalez Sanchez,J (1253) Mondariz 2015}) 8... Nxc3 {[%emt 0:08:40]} 9. bxc3 {[%emt 0:01:23]} Qc7 {[%emt 0:00:21]} 10. O-O {[%emt 0:06:32]} O-O {[%emt 0:08:23]} 11. Qe2 {[%emt 0:04:06]} Rc8 {[%emt 0:01:53]} 12. Rb1 {[%emt 0:10:47]} a6 {[%emt 0:05:28]} 13. d3 {[%emt 0:00:53]} Bf6 {[%emt 0:02:34]} 14. Bb2 {[%emt 0:02:38]} Nc6 {[%emt 0:01:28]} 15. Ba2 {[%emt 0:02:15]} b5 {[%emt 0:04:27]} 16. e4 {[%emt 0:02:25]} Na5 {[%emt 0:05:12]} 17. Rbc1 {[%emt 0:11:58]} Rab8 {[%emt 0:03:13]} 18. e5 {[%emt 0:02:08]} Be7 {[%emt 0:00:15]} 19. Nd2 {[%emt 0:00:11]} Bc6 {[%emt 0:03:17]} 20. f4 {[%emt 0:02:42]} g6 {[%emt 0:00:46]} 21. Ne4 {[%emt 0:03:31]} Rd8 {[%emt 0:00:40]} 22. Nf6+ {[%emt 0:02:32]} Bxf6 {[%emt 0:02:20]} 23. exf6 {[%emt 0:00:04]} c4 {[%emt 0:00:57]} 24. d4 {[%emt 0:00:23]} Rd5 {[%emt 0:02:20]} 25. Rce1 {[%emt 0:05:20]} (25. g4 $1 $11) 25... Qd8 $17 {[%emt 0:02:10]} 26. Qg4 {[%emt 0:02:40]} Qxf6 {[%emt 0:01:07]} 27. Re5 {[%emt 0:00:05]} h5 {[%emt 0:08:21]} 28. Qg3 {[%emt 0:00:31]} Re8 {[%emt 0:07:22]} (28... h4 $17 29. Qg4 Nb3) 29. Bc1 {[%emt 0:00:52]} (29. Bb1 $15 {should be considered.}) 29... Qg7 {[%emt 0:01:08]} 30. Bb1 {[%emt 0:02:54][%cal Ba2b1,Bb1c2,Bc2d1][%mdl 32]} f5 {[%emt 0:00:30]} 31. Rfe1 {[%emt 0:00:49]} Kf7 {[%emt 0:01:01]} 32. Bc2 {[%emt 0:03:30]} Qf6 {[%emt 0:04:55]} 33. Be3 {[%emt 0:01:28]} (33. a4 $15) 33... Qe7 {[%emt 0:03:48]} 34. Ra1 {[%emt 0:10:11]} (34. Bc1 $17) 34... Rg8 {[%emt 0:01:50]} (34... Nb3 $19 35. Ra2 h4) 35. Qh3 {[%emt 0:01:56]} (35. h4 $17) 35... Nb3 $19 {[%emt 0:01:44]} 36. Ra2 {[%emt 0:00:19]} a5 {[%emt 0:01:02]} (36... Rxe5 $19 37. fxe5 h4) 37. Bd1 $17 {[%emt 0:00:23]} Rh8 {[%emt 0:01:51]} ({Black should try} 37... b4 $17 38. axb4 axb4) 38. g4 {[%emt 0:00:35]} (38. Bf3 $1 $11) 38... Rxe5 {[%emt 0:02:38]} (38... fxg4 $6 39. Bxg4 Rxe5 40. fxe5 $11) 39. fxe5 {[%emt 0:00:05]} Qd8 {[%emt 0:00:02]} ({Better is} 39... Rh7 $17) 40. gxf5 $1 $11 {[%emt 0:01:01]} Qd5 $2 {[%emt 0:03:44]} (40... gxf5 $11 41. Rf2 Qg8+ 42. Kf1 Be4) 41. fxg6+ $2 {[%emt 0:00:54]} (41. fxe6+ $1 $18 Kg7 42. Rg2 $1) 41... Kg7 {[%emt 0:02:10] [#]} (41... Ke7 $1 $11 {remains equal.} 42. Bg5+ Kd7) 42. Bg5 $1 $16 {[%emt 0:00:59] White threatens Bf6+ and mate. The board is on fire.} Nxd4 $2 {[%emt 0:03:26][%mdl 8192]} 43. Bf6+ $18 {[%emt 0:01:08] A strong pair of Bishops.} Kg8 {[%emt 0:00:01] [#]} 44. Rd2 $1 {[%emt 0:00:40]} Rh6 {[%emt 0:00:57]} 45. Rxd4 {[%emt 0:00:29] White wants to mate with Bc2.} Rxg6+ 46. Kf2 {[%emt 0:00:04]} ({But not} 46. Kf1 $2 Qh1+ 47. Kf2 (47. Ke2 $2 Rg2+ 48. Qxg2+ Qxg2+ 49. Ke1 Bd5 $19) 47... Rg2+ 48. Qxg2+ (48. Ke3 $2 Qg1+ 49. Kf4 Qf1+ 50. Qf3 Bxf3 $19) 48... Qxg2+ 49. Ke3 Bd5 $19) 46... Qh1 {[%emt 0:01:13]} 47. Qxe6+ {[%emt 0:00:40] White mates.} Kh7 {[%emt 0:00:03]} 48. Qf7+ {[%emt 0:00:17]} Kh6 {[%emt 0:00:03] [#]} 49. Bg5+ $1 {[%emt 0:00:20][%mdl 512] Never resign too early!  Weighted Error Value: White=0.21 (precise) /Black=0.42} 1-0

[Event "7th Porticcio Open 2022"]
[Site "Porticcio"]
[Date "2022.07.07"]
[Round "8.4"]
[White "Rakotomaharo, Fy Antenaina"]
[Black "Suarez Uriel, Adrian"]
[Result "0-1"]
[ECO "D85"]
[WhiteElo "2490"]
[BlackElo "2386"]
[Annotator "TA"]
[PlyCount "105"]
[EventDate "2022.07.02"]
[EventType "swiss"]
[EventCountry "FRA"]
[SourceTitle "playchess.com"]
[Source "ChessBase"]
[SourceQuality "1"]
[TimeControl "5400+30"]

{[%evp 15,105,12,0,-10,0,0,0,7,0,0,0,8,24,23,54,-103,-42,-108,-63,-105,-89,-171,-161,-172,0,-123,205,195,192,114,115,-279,-285,-281,-279,-433,-347,-436,-443,-446,-435,-442,-437,-419,-340,-307,-121,-212,-212,-526,-491,-511,-519,-545,-398,-546,-536,-491,-482,-536,-517,-492,-462,-461,-448,-547,-547,-948,-945,-905,-882,-808,-775,-984,-873,-29981,-1039,-1039,-1031,-1133,-1198,-1181,-1152,-1657,-1645,-1884,-1468,-4729,-4718,-4610,-1995,-29991]} 1. d4 {[%emt 0:00:44]} Nf6 {[%emt 0:01:12]} 2. c4 {[%emt 0:00:04]} g6 {[%emt 0:00:06]} 3. Nc3 {[%emt 0:00:06]} d5 {[%emt 0:00:04]} 4. Nf3 {[%emt 0:00:06]} Bg7 {[%emt 0:00:04]} 5. cxd5 {[%emt 0:00:06]} Nxd5 {[%emt 0:00:03]} 6. e4 {[%emt 0:00:08]} Nxc3 {[%emt 0:00:06]} 7. bxc3 {[%emt 0:00:04]} c5 {[%emt 0:00:05]} 8. Bb5+ {[%emt 0:00:20]} Nc6 $1 {[%emt 0:00:04][%cal Rc5d4] 8...Nc6 scores better than 8...Bd7.} 9. d5 {[%emt 0:00:05] D85: Exchange Grünfeld: Unusual White 7th moves and lines with 7 Nf3.} Qa5 {[%emt 0:01:01]} 10. Rb1 {[%emt 0:00:07]} a6 {[%emt 0:00:35]} 11. Bxc6+ {[%emt 0:00:17] The position is equal.} bxc6 {[%emt 0:00:02]} 12. O-O $1 {[%emt 0:00:09]} O-O {[%emt 0:04:45]} 13. dxc6 {[%emt 0:00:07]} Be6 {[%emt 0:12:15]} 14. Bf4 {[%emt 0:05:45]} Bc4 {[%emt 0:07:52] [#] This bishop pair is nice.} 15. c7 $146 {[%emt 0:05:24]} ({Predecessor:} 15. Re1 Rac8 16. c7 f6 17. e5 Qxc7 18. exf6 Qxf4 19. fxg7 Rf7 20. Rb2 Rxg7 21. Ne5 Bb5 22. Qd5+ Kh8 23. c4 e6 24. Qd6 {1-0 (24) Almagro Llamas,P (2483)-Suarez Uriel,A (2396) Madrid 2018}) 15... Bxf1 $17 {[%emt 0:02:57]} 16. Qxf1 {[%emt 0:00:06]} (16. Kxf1 $15 Qxa2 17. Kg1) 16... Rac8 {[%emt 0:03:48]} 17. Rb7 {[%emt 0:07:06]} Qxa2 {[%emt 0:04:15]} 18. h4 {[%emt 0:06:27]} (18. Nd2 $17) 18... Qe6 $19 {[%emt 0:26:54]} ({Not} 18... Bxc3 19. Qc1 Qa5 20. Qd1 $17) 19. Qd3 {[%emt 0:14:31]} Qc6 $2 {[%emt 0:17:46]} (19... c4 $19 20. Qe3 Qd7) 20. Rb8 {[%emt 0:01:32]} (20. Qd5 $1 $11 {was the only way to keep the balance.} Qxd5 21. exd5) 20... c4 $2 {[%emt 0:01:07][%mdl 8192]} (20... h6 $1 $17 {and life is bright. aiming for ...a5.} 21. Qc4 Rxc7 22. Rxf8+ Kxf8 23. Bxc7 Qxc7) 21. Qd8 $1 $18 {[%emt 0:11:48]} Qe6 {[%emt 0:00:01] [#]} (21... Rfxd8 {leads to mate.} 22. cxd8=Q+) 22. Ng5 {[%emt 0:01:30]} (22. e5 $1 $18) 22... Qg4 $16 {[%emt 0:00:01]} 23. f3 $2 {[%emt 0:00:11][%mdl 8192]} Rcxd8 $19 {[%emt 0:01:46]} 24. fxg4 {[%emt 0:02:53]} Rc8 {[%emt 0:00:08]} 25. Rb6 {[%emt 0:01:50]} (25. Rb4 $142 e5 26. Bg3) 25... Ra8 {[%emt 0:02:23]} 26. e5 {[%emt 0:07:48]} a5 {[%emt 0:00:15]} 27. e6 {[%emt 0:00:04]} f5 {[%emt 0:01:53]} 28. Nf7 {[%emt 0:00:34]} Bxc3 {[%emt 0:01:31]} 29. Rc6 {[%emt 0:00:27]} Bd4+ {[%emt 0:01:13]} 30. Kh2 {[%emt 0:00:04]} c3 $2 {[%emt 0:01:52]} ({Worse is} 30... fxg4 31. Bg5 $17) (30... a4 $19 {has better winning chances.} 31. Rxc4 Bb2) 31. Rc4 {[%emt 0:01:08]} (31. Nh6+ $17 Kg7 32. Rc4) 31... Bg7 {[%emt 0:01:15]} 32. Nh6+ {[%emt 0:04:37]} (32. h5 {is tougher.}) 32... Bxh6 {[%emt 0:00:22]} 33. Bxh6 {[%emt 0:00:04][%mdl 4096] Endgame KRR-KRB} Rfc8 {[%emt 0:00:29]} 34. Rxc3 {[%emt 0:00:39]} fxg4 {[%emt 0:00:35]} 35. Bf4 {[%emt 0:09:18]} a4 {[%emt 0:00:11]} 36. Ra3 {[%emt 0:10:22]} h5 {[%emt 0:00:58]} 37. Be5 {[%emt 0:00:20]} Kh7 {[%emt 0:00:23]} 38. Kg3 {[%emt 0:01:03]} g5 {[%emt 0:00:07]} 39. hxg5 {[%emt 0:00:41]} Kg6 {[%emt 0:00:01]} 40. Kf4 {[%emt 0:00:28]} Ra6 {[%emt 0:01:27]} 41. Rd3 {[%emt 0:02:25]} a3 {[%emt 0:00:44]} 42. Rd8 {[%emt 0:00:34]} Raa8 {[%emt 0:00:01]} 43. Rd7 {[%emt 0:00:05]} Ra4+ {[%emt 0:00:12]} 44. Ke3 {[%emt 0:00:07]} Kf5 {[%emt 0:00:07]} 45. Rd8 {[%emt 0:01:47] [#]} Raa8 {[%emt 0:00:01]} (45... Kxe5 $142 $1 46. Rd1 a2 47. g6 a1=Q 48. Rxa1 Rxa1 49. g7 Rc1 50. Ke2 R1xc7 51. Kf2 Rc3 52. Kf1 Rc2 53. g8=Q Rxg8 54. Ke1 Rd8 55. g3 Kxe6 56. Kf1 Rd1#) 46. Rd5 {[%emt 0:00:07] Black is clearly winning.} Kxe6 {[%emt 0:00:08]} 47. Rc5 {[%emt 0:00:43]} a2 {[%emt 0:00:15]} 48. Ba1 {[%emt 0:00:03]} Kd6 {[%emt 0:00:17][%csl LRc5,LRc7]} 49. Rc1 {[%emt 0:00:06]} Rxc7 {[%emt 0:00:10]} 50. Rh1 {[%emt 0:01:01]} Ke6 {[%emt 0:01:13] Hoping for ...Rb7.} 51. g6 {[%emt 0:00:07]} Rb7 {[%emt 0:00:30] ( -> ...Rb1)} 52. Rxh5 {[%emt 0:02:14]} Rb1 {[%emt 0:00:15]} 53. Kd4 {Weighted Error Value: White=0.96/Black=0.39} 0-1

[Event "7th Porticcio Open 2022"]
[Site "Porticcio"]
[Date "2022.07.07"]
[Round "8.5"]
[White "Tomasi, Albert"]
[Black "Mastrovasilis, Athanasios"]
[Result "1/2-1/2"]
[ECO "B15"]
[WhiteElo "2298"]
[BlackElo "2527"]
[Annotator "TA"]
[PlyCount "127"]
[EventDate "2022.07.02"]
[EventType "swiss"]
[EventCountry "FRA"]
[SourceTitle "playchess.com"]
[Source "ChessBase"]
[SourceQuality "1"]
[TimeControl "5400+30"]

{[%evp 12,127,20,28,43,43,53,33,34,31,40,28,44,38,44,29,39,33,62,7,33,16,36,10,36,14,18,11,85,85,95,60,92,86,63,65,106,106,164,154,221,202,189,189,205,120,117,0,0,0,0,-33,-28,-107,-115,-109,-119,-451,-8,-23,0,0,-1,-17,0,0,0,-131,-122,-226,-78,-225,-147,-29986,0,0,0,-61,-20,-25,0,0,0,-4,0,0,0,0,0,0,0,0,0,0,0,0,0,0,0,0,0,0,0,0,199,0,0,0,0,0,0,0,0,0,0,0,0,0]} 1. e4 {[%emt 0:00:51]} c6 {[%emt 0:00:07]} 2. d4 {[%emt 0:02:10]} d5 {[%emt 0:00:07]} 3. Nc3 {[%emt 0:00:09]} dxe4 {[%emt 0:00:07]} 4. Nxe4 {[%emt 0:00:12]} Nf6 {[%emt 0:00:10]} 5. Nxf6+ {[%emt 0:00:15]} exf6 {[%emt 0:00:03]} 6. c3 {[%emt 0:00:41]} Bd6 {[%emt 0:00:08]} 7. Bd3 {[%emt 0:00:15]} Na6 {[%emt 0:00:16][%cal Bb8a6,Ba6c7,Bc7d5][%mdl 32] B15: Caro-Kann: 3 Nc3: 3...g6 and 3...dxe4 4 Nxe4 Nf6 5 Nxf6+ exf6.} 8. Qc2 {[%emt 0:08:36]} Nc7 {[%emt 0:03:26]} 9. Ne2 {[%emt 0:05:46]} h5 {[%emt 0:00:56] White is slightly better.} 10. O-O {[%emt 0:01:09]} Nd5 {[%emt 0:03:18]} 11. a3 {[%emt 0:09:00] [#]} h4 $146 {[%emt 0:07:29]} ({Predecessor:} 11... Kf8 12. c4 Ne7 13. Bd2 g6 14. Bc3 Kg7 15. Ng3 Qc7 16. f4 h4 17. Ne4 Nf5 {1-0 (62) Quparadze,G (2463)-Lortkipanidze,N (2416) Tbilisi 2021}) 12. c4 {[%emt 0:04:22]} Ne7 {[%emt 0:00:06]} 13. h3 {[%emt 0:00:14]} Kf8 {[%emt 0:22:58]} 14. b4 {[%emt 0:19:22]} Be6 {[%emt 0:08:21]} 15. Rb1 {[%emt 0:07:50]} (15. Re1 $14) 15... Qd7 {[%emt 0:02:20]} (15... b5 $5) 16. b5 {[%emt 0:03:39]} Re8 {[%emt 0:16:14][%cal Oe6h3]} 17. bxc6 {[%emt 0:10:23]} bxc6 {[%emt 0:00:02][%cal Oe6h3]} 18. Bf4 {[%emt 0:10:06][%cal Od4d5]} (18. c5 {keeps more tension.} Bc7 19. Nf4 Qxd4 20. Nxe6+ fxe6 21. Rb7) 18... Bxf4 {[%emt 0:05:30]} (18... g6 {seems wilder.} 19. Bxd6 Qxd6 20. Rfd1 Kg7) 19. Nxf4 {[%emt 0:00:06]} Qxd4 {[%emt 0:00:14]} (19... Bf5 $11) 20. Nxe6+ $16 {[%emt 0:00:19]} fxe6 {[%emt 0:00:04]} 21. Rfe1 {[%emt 0:01:27]} Kf7 {[%emt 0:11:24]} 22. Rb7 {[%emt 0:00:24]} f5 {[%emt 0:01:28]} 23. Qe2 $1 {[%emt 0:03:16]} Qf6 {[%emt 0:03:07]} 24. c5 $1 {[%emt 0:02:03] White is much more active.} (24. Rxa7 Ra8 25. Rd7 Rad8 $14) 24... Rb8 {[%emt 0:01:58]} (24... a5 $16 {is a better defense.}) 25. Rxa7 $18 {[%emt 0:00:06]} Rb2 {[%emt 0:03:33]} (25... Ra8 $16 26. Rb7 Rhb8 27. Qh5+ Kf8) 26. Qf3 {[%emt 0:00:21]} Rb3 {[%emt 0:00:59]} 27. Qd1 {[%emt 0:01:14]} Rc3 {[%emt 0:00:23][%cal Bb3c3,Bc3c5,Bc5d5][%mdl 32]} 28. Bb1 {[%emt 0:00:24]} (28. Qe2 $18) 28... Rxc5 $16 {[%emt 0:01:49] [#]} 29. Qd6 {[%emt 0:02:21] Inhibits Re5.} (29. Qe2 $1 $16) 29... Rd5 $36 {[%emt 0:00:26][%mdl 2048] Black fights for an advantage.} 30. Qxc6 {[%emt 0:00:08]} Rhd8 $1 {[%emt 0:00:29]} 31. Qa4 {[%emt 0:03:07] Prevents Rd1.} Qc3 {[%emt 0:02:01]} 32. Kf1 {[%emt 0:02:31] [#]} (32. Rf1 $1 $11) 32... Re5 $1 $17 {[%emt 0:03:04]} 33. Rxe5 {[%emt 0:01:34]} Qxe5 {[%emt 0:00:10]} 34. Qc2 {[%emt 0:02:30][%mdl 8192] Against Qc5} (34. Rd7 $17 {is a better chance.} Rxd7 35. Qxd7) 34... Qh2 $2 {[%emt 0:03:38]} (34... Rb8 $19 35. Qd1 Qc5) 35. Ba2 $11 {[%emt 0:00:13] White wants to mate with Qxf5+.} Qe5 {[%emt 0:00:22]} 36. Rb7 {[%emt 0:00:47]} Kf6 {[%emt 0:00:34]} 37. Rb1 {[%emt 0:00:26]} Nd5 {[%emt 0:00:43]} 38. Re1 {[%emt 0:00:38]} Qd4 {[%emt 0:00:45]} 39. Qc6 {[%emt 0:00:26]} (39. Bxd5 $11 Rxd5 40. Qc8) 39... Nf4 $17 {[%emt 0:00:15]} 40. Kg1 {[%emt 0:00:34]} (40. Qc4 $17 {might work better.}) 40... Rd6 {[%emt 0:00:36]} (40... Qd2 $19 {has better winning chances.} 41. Rxe6+ Kg5) 41. Qe8 {[%emt 0:00:31]} (41. Qc2 $17) 41... Qd2 {[%emt 0:00:32]} 42. Re3 {[%emt 0:00:31][%mdl 8192]} (42. Rf1 $17) 42... Ne2+ $2 {[%emt 0:00:44]} (42... Qd1+ {mates} 43. Kh2 Qf1 44. Qa8 Rd1 45. Qf8+ Kg5 46. Qe7+ Kh5 47. g4+ hxg3+ 48. Kxg3 Qg2+ 49. Kxf4 Qxf2+ 50. Rf3 Qd4+ 51. Kg3 Qe5+ 52. Kg2 Rd2+ 53. Rf2 Qe4+ 54. Kg1 Qe1+ 55. Rf1 Qg3+ 56. Kh1 Qh2#) 43. Kh2 $11 {[%emt 0:00:12] Chess con chili.} Nf4 {[%emt 0:00:21]} 44. Rf3 {[%emt 0:00:45]} ({Better is} 44. Kg1 $11) 44... Ng6 {[%emt 0:00:40]} (44... Rd8 $5 {[%cal Rd8e8]} 45. Qc6 Qxa2 46. Rxf4 Qb2 47. Rxh4 Qxf2 48. Qc3+ Kg6 $15) 45. Bb3 {[%emt 0:00:33]} Qd4 {[%emt 0:00:12]} 46. Re3 {[%emt 0:00:30][%cal Re3e6] Prevents Qe5+.} Nf4 {[%emt 0:00:38]} 47. Qh8 {[%emt 0:00:27]} Ng6 {[%emt 0:00:33]} 48. Qe8 {[%emt 0:00:11][%cal Re3e6]} Nf4 {[%emt 0:00:32]} 49. a4 {[%emt 0:00:45]} Rb6 {[%emt 0:00:26]} 50. Qf8+ {[%emt 0:00:28]} Kg6 {[%emt 0:00:09]} 51. Qe8+ {[%emt 0:00:15]} Kh7 {[%emt 0:00:16]} 52. a5 {[%emt 0:00:42]} Rxb3 {[%emt 0:00:30]} 53. Rxb3 {[%emt 0:00:04] Strongly threatening Qe7.} Qxf2 {[%emt 0:00:05][%csl Gf4][%cal Rf2g2][%mdl 4096] Endgame KQR-KQN} 54. Qc6 {[%emt 0:00:05]} Ne2 {[%emt 0:00:27][%csl Ge2][%cal Rf2g1]} 55. Rb1 {[%emt 0:00:49] Prevents Qg1+. Threatens to win with Qf3.} ({Reject} 55. Qb6 Qf4+ 56. Kh1 Ng3+ 57. Kh2 Ne4+ 58. Kh1 Qc1+ 59. Qg1 Nf2+ 60. Kh2 Qc7+ 61. g3 Ne4 $17) 55... Qf4+ {[%emt 0:01:09]} 56. Kh1 {[%emt 0:00:04]} Ng3+ {[%emt 0:00:16]} 57. Kg1 {[%emt 0:00:14]} Qd4+ {[%emt 0:00:44]} 58. Kh2 {[%emt 0:00:03]} Qe5 {[%emt 0:00:19] The position is equal.} 59. a6 {[%emt 0:01:52] Hoping for Qb5.} Ne2+ {[%emt 0:00:46]} 60. Kh1 {[%emt 0:00:04]} Ng3+ {[%emt 0:00:13]} 61. Kh2 {[%emt 0:00:05] Qb5 is the strong threat.} Ne2+ {[%emt 0:01:03]} 62. Kh1 {[%emt 0:00:05] aiming for Qb5.} Ng3+ {[%emt 0:00:14]} 63. Kh2 {[%emt 0:00:41] And now Qb5 would win.} Ne2+ {[%emt 0:00:50]} 64. Kh1 {[%emt 0:00:09] A wild game.  Weighted Error Value: White=0.36/Black=0.40} 1/2-1/2